fUST/lending_fUST_20260530
["ID","MTS","AMOUNT","RATE_DAILY","PERIOD"]
[423472220,1780152646000,-500.0,8.219e-05,2]
[423472218,1780152646000,-500.0,8.219e-05,2]
[423472236,1780152646000,-500.0,8.219e-05,2]
[423472228,1780152646000,-524.64849091,8.219e-05,2]
[423472226,1780152646000,-500.0,8.219e-05,2]
[423472235,1780152646000,-500.0,8.219e-05,2]
[423472233,1780152646000,-500.0,8.219e-05,2]
[423472238,1780152646000,-500.0,8.219e-05,2]
[423472239,1780152646000,-500.0,8.219e-05,2]
[423472229,1780152646000,-500.0,8.219e-05,2]
[423472230,1780152646000,-500.0,8.219e-05,2]
[423472237,1780152646000,-500.0,8.219e-05,2]
[423472227,1780152646000,-500.0,8.219e-05,2]
[423472231,1780152646000,-151.5,8.219e-05,2]
[423472232,1780152646000,-500.0,8.219e-05,2]
[423472241,1780152646000,-500.0,8.219e-05,2]
[423472252,1780152646000,-500.0,8.219e-05,2]
[423472251,1780152646000,-500.0,8.219e-05,2]
[423472247,1780152646000,-530.78,8.219e-05,2]
[423472276,1780152646000,-1384.1673,8.493e-05,2]
[423472263,1780152646000,-521.73543676,8.219e-05,2]
[423472273,1780152646000,-500.0,8.219e-05,2]
[423472307,1780152646000,-443.42444975,8.493e-05,2]
[423472304,1780152646000,-500.0,8.493e-05,2]
[423472313,1780152646000,-500.0,8.493e-05,2]
[423472310,1780152646000,-1886.92,8.493e-05,2]
[423472311,1780152646000,-500.0,8.493e-05,2]
[423472308,1780152646000,-500.0,8.493e-05,2]
[423472312,1780152646000,-502.66285442,8.493e-05,2]
[423472314,1780152646000,-1036.26,8.493e-05,2]
[423472330,1780152646000,-500.0,8.493e-05,2]
[423472317,1780152646000,-1032.93,8.493e-05,2]
[423472318,1780152646000,-1963.87,8.493e-05,2]
[423472322,1780152646000,-1167.91,8.493e-05,2]
[423472329,1780152646000,-183.04041654,8.493e-05,2]
[423472321,1780152646000,-519.43,8.493e-05,2]
[423472328,1780152646000,-500.0,8.493e-05,2]
[423472323,1780152646000,-531.05,8.493e-05,2]
[423472325,1780152646000,-500.0,8.493e-05,2]
[423472319,1780152646000,-552.96241329,8.493e-05,2]
[423472320,1780152646000,-1360.16,8.493e-05,2]
[423472327,1780152646000,-782.32,8.493e-05,2]
[423472324,1780152646000,-500.0,8.493e-05,2]
[423472333,1780152646000,-1099.96,8.493e-05,2]
[423472332,1780152646000,-500.0,8.493e-05,2]
[423472335,1780152646000,-575.05,8.493e-05,2]
[423472336,1780152646000,-1011.32412606,8.493e-05,2]
[423472331,1780152646000,-3288.26,8.493e-05,2]
[423472272,1780152646000,-984.37,8.219e-05,2]
[423472306,1780152646000,-500.0,8.493e-05,2]
[423472309,1780152646000,-500.0,8.493e-05,2]
[423472326,1780152646000,-941.26,8.493e-05,2]
[423472315,1780152646000,-500.0,8.493e-05,2]
[423472316,1780152646000,-500.0,8.493e-05,2]
[423472278,1780152646000,-500.0,8.493e-05,2]
[423472287,1780152646000,-592.4,8.493e-05,2]
[423472285,1780152646000,-500.0,8.493e-05,2]
[423472280,1780152646000,-506.44,8.493e-05,2]
[423472288,1780152646000,-500.0,8.493e-05,2]
[423472284,1780152646000,-466.56610165,8.493e-05,2]
[423472282,1780152646000,-500.0,8.493e-05,2]
[423472283,1780152646000,-500.0,8.493e-05,2]
[423472279,1780152646000,-500.0,8.493e-05,2]
[423472281,1780152646000,-500.0,8.493e-05,2]
[423472290,1780152646000,-1297.23,8.493e-05,2]
[423472289,1780152646000,-233.84704073,8.493e-05,2]
[423472291,1780152646000,-500.87575633,8.493e-05,2]
[423472286,1780152646000,-500.0,8.493e-05,2]
[423472292,1780152646000,-500.0,8.493e-05,2]
[423472305,1780152646000,-531.06,8.493e-05,2]
[423472334,1780152646000,-553.66780374,8.493e-05,2]
[423472301,1780152646000,-500.0,8.493e-05,2]
[423472302,1780152646000,-500.0,8.493e-05,2]
[423472299,1780152646000,-407.68516009,8.493e-05,2]
[423472298,1780152646000,-500.0,8.493e-05,2]
[423472300,1780152646000,-500.0,8.493e-05,2]
[423472296,1780152646000,-500.0,8.493e-05,2]
[423472297,1780152646000,-186.13497545,8.493e-05,2]
[423472295,1780152646000,-500.0,8.493e-05,2]
[423472293,1780152646000,-198.94985924,8.493e-05,2]
[423472303,1780152646000,-500.0,8.493e-05,2]
[423472294,1780152646000,-339.40159126,8.493e-05,2]
[423472369,1780152647000,-500.0,8.767e-05,2]
[423472359,1780152647000,-633.71,8.493e-05,2]
[423472361,1780152647000,-603.57,8.493e-05,2]
[423472352,1780152647000,-3214.58,8.493e-05,2]
[423472370,1780152647000,-500.0,8.767e-05,2]
[423472358,1780152647000,-443.733909,8.493e-05,2]
[423472363,1780152647000,-500.0,8.493e-05,2]
[423472362,1780152647000,-984.37,8.493e-05,2]
[423472364,1780152647000,-3593.26,8.767e-05,2]
[423472366,1780152647000,-500.0,8.767e-05,2]
[423472371,1780152647000,-500.0,8.767e-05,2]
[423472365,1780152647000,-1307.6193,8.767e-05,2]
[423472360,1780152647000,-500.0,8.493e-05,2]
[423472353,1780152647000,-530.78,8.493e-05,2]
[423472367,1780152647000,-500.0,8.767e-05,2]
[423472368,1780152647000,-506.44,8.767e-05,2]
[423472357,1780152647000,-500.0,8.493e-05,2]
[423472340,1780152647000,-548.01847435,8.493e-05,2]
[423472356,1780152647000,-946.66,8.493e-05,2]
[423472383,1780152647000,-500.0,8.767e-05,2]
[423472337,1780152647000,-3844.76602803,8e-05,2]
[423472338,1780152647000,-1155.23397197,8e-05,2]
[423472339,1780152647000,-2459.02587394,8.493e-05,2]
[423472342,1780152647000,-212.28664567,8.493e-05,2]
[423472344,1780152647000,-1975.36627719,8.493e-05,2]
[423472343,1780152647000,-343.84372281,8.493e-05,2]
[423472354,1780152647000,-500.0,8.493e-05,2]
[423472345,1780152647000,-500.0,8.493e-05,2]
[423472346,1780152647000,-745.67,8.493e-05,2]
[423472347,1780152647000,-2176.34,8.493e-05,2]
[423472349,1780152647000,-956.78,8.493e-05,2]
[423472348,1780152647000,-16921.28,8.493e-05,2]
[423472355,1780152647000,-1356.03,8.493e-05,2]
[423472350,1780152647000,-1030.19,8.493e-05,2]
[423472351,1780152647000,-1293.86,8.493e-05,2]
[423472341,1780152647000,-901.47,8.493e-05,2]
[423472382,1780152647000,-500.0,8.767e-05,2]
[423472374,1780152647000,-592.4,8.767e-05,2]
[423472373,1780152647000,-500.0,8.767e-05,2]
[423472391,1780152647000,-500.0,8.767e-05,2]
[423472398,1780152647000,-505.79549661,8.767e-05,2]
[423472408,1780152647000,-2319.21,8.767e-05,2]
[423472397,1780152647000,-453.68814157,8.767e-05,2]
[423472400,1780152647000,-782.32,8.767e-05,2]
[423472401,1780152647000,-500.0,8.767e-05,2]
[423472407,1780152647000,-901.47,8.767e-05,2]
[423472390,1780152647000,-500.0,8.767e-05,2]
[423472402,1780152647000,-3288.26,8.767e-05,2]
[423472404,1780152647000,-1099.96,8.767e-05,2]
[423472399,1780152647000,-941.26,8.767e-05,2]
[423472406,1780152647000,-3470.35,8.767e-05,2]
[423472403,1780152647000,-472.3487318,8.767e-05,2]
[423472410,1780152647000,-500.0,8.767e-05,2]
[423472412,1780152647000,-3273.26741479,8.767e-05,2]
[423472411,1780152647000,-2176.34,8.767e-05,2]
[423472405,1780152647000,-575.05,8.767e-05,2]
[423472392,1780152647000,-1032.93,8.767e-05,2]
[423472409,1780152647000,-745.67,8.767e-05,2]
[423472388,1780152647000,-500.0,8.767e-05,2]
[423472372,1780152647000,-500.0,8.767e-05,2]
[423472396,1780152647000,-1167.91,8.767e-05,2]
[423472377,1780152647000,-500.0,8.767e-05,2]
[423472379,1780152647000,-500.0,8.767e-05,2]
[423472376,1780152647000,-1297.23,8.767e-05,2]
[423472378,1780152647000,-500.0,8.767e-05,2]
[423472381,1780152647000,-500.0,8.767e-05,2]
[423472380,1780152647000,-401.75077032,8.767e-05,2]
[423472375,1780152647000,-500.0,8.767e-05,2]
[423472384,1780152647000,-531.06,8.767e-05,2]
[423472389,1780152647000,-1036.26,8.767e-05,2]
[423472393,1780152647000,-1963.87,8.767e-05,2]
[423472395,1780152647000,-519.43,8.767e-05,2]
[423472394,1780152647000,-1360.16,8.767e-05,2]
[423472387,1780152647000,-1886.92,8.767e-05,2]
[423472385,1780152647000,-500.0,8.767e-05,2]
[423472386,1780152647000,-500.0,8.767e-05,2]
[423472421,1780152841000,-4117.09281376,5.639e-05,2]
[423472420,1780152841000,-300.0,5.638e-05,2]
[423472418,1780152841000,-417.15766414,5.012e-05,2]
[423472419,1780152841000,-165.7495221,5.112e-05,2]
[423472423,1780152843000,-500.0,5.639e-05,2]
[423472424,1780152843000,-500.0,5.639e-05,2]
[423472422,1780152843000,-3551.72315928,5.639e-05,2]
[423472426,1780152844000,-51.72315928,5.639e-05,2]
[423472425,1780152844000,-448.27684072,5.639e-05,2]
[423472431,1780152845000,-500.0,5.639e-05,2]
[423472427,1780152845000,-500.0,5.639e-05,2]
[423472428,1780152845000,-500.0,5.639e-05,2]
[423472430,1780152845000,-500.0,5.639e-05,2]
[423472429,1780152845000,-500.0,5.639e-05,2]
[423472432,1780152845000,-500.0,5.639e-05,2]
[423472438,1780152845000,-500.0,5.639e-05,2]
[423472434,1780152845000,-500.0,5.639e-05,2]
[423472435,1780152845000,-500.0,5.639e-05,2]
[423472436,1780152845000,-448.27684072,5.639e-05,2]
[423472439,1780152845000,-500.0,5.639e-05,2]
[423472437,1780152845000,-51.72315928,5.639e-05,2]
[423472433,1780152845000,-500.0,5.639e-05,2]
[423472440,1780152846000,-500.0,5.639e-05,2]
[423472441,1780152846000,-500.0,5.639e-05,2]
[423472443,1780152846000,-500.0,5.639e-05,2]
[423472444,1780152846000,-612.28702271,5.639e-05,2]
[423472446,1780152846000,-500.0,5.639e-05,2]
[423472445,1780152846000,-500.0,5.639e-05,2]
[423472447,1780152846000,-335.98981801,5.639e-05,2]
[423472442,1780152846000,-500.0,5.639e-05,2]
[423472451,1780152847000,-500.0,5.639e-05,2]
[423472448,1780152847000,-164.01018199,5.639e-05,2]
[423472449,1780152847000,-500.0,5.639e-05,2]
[423472453,1780152847000,-500.0,5.639e-05,2]
[423472450,1780152847000,-500.0,5.639e-05,2]
[423472454,1780152847000,-500.0,5.639e-05,2]
[423472456,1780152847000,-500.0,5.639e-05,2]
[423472455,1780152847000,-500.0,5.639e-05,2]
[423472457,1780152847000,-500.0,5.639e-05,2]
[423472458,1780152847000,-335.98981801,5.639e-05,2]
[423472452,1780152847000,-500.0,5.639e-05,2]
[423472460,1780152856000,-500.0,5.639e-05,2]
[423472462,1780152856000,-500.0,5.639e-05,2]
[423472459,1780152856000,-164.01018199,5.639e-05,2]
[423472464,1780152856000,-500.0,5.639e-05,2]
[423472461,1780152856000,-500.0,5.639e-05,2]
[423472463,1780152856000,-500.0,5.639e-05,2]
[423472466,1780152856000,-500.0,5.639e-05,2]
[423472467,1780152856000,-500.0,5.639e-05,2]
[423472469,1780152856000,-211.4929433,5.639e-05,2]
[423472468,1780152856000,-624.49687471,5.639e-05,2]
[423472465,1780152856000,-500.0,5.639e-05,2]
[423472471,1780152863000,-500.0,5.639e-05,2]
[423472470,1780152863000,-288.5070567,5.639e-05,2]
[423472472,1780152864000,-500.0,5.639e-05,2]
[423472473,1780152864000,-500.0,5.639e-05,2]
[423472475,1780152864000,-167.0,5.639e-05,2]
[423472476,1780152864000,-300.0,5.752e-05,2]
[423472474,1780152864000,-500.0,5.639e-05,2]
[423472477,1780152864000,-300.0,5.752e-05,2]
[423472481,1780152864000,-300.0,5.752e-05,2]
[423472479,1780152864000,-300.0,5.752e-05,2]
[423472483,1780152864000,-300.0,5.752e-05,2]
[423472484,1780152864000,-144.4929433,5.752e-05,2]
[423472478,1780152864000,-300.0,5.752e-05,2]
[423472480,1780152864000,-300.0,5.752e-05,2]
[423472482,1780152864000,-300.0,5.752e-05,2]
[423472487,1780152904000,-184.69660956,5.489e-05,7]
[423472485,1780152904000,-184.69660956,5.227e-05,7]
[423472486,1780152904000,-184.69660956,5.332e-05,7]
[423472493,1780152905000,-205.70650506,5.752e-05,2]
[423472491,1780152905000,-300.0,5.752e-05,2]
[423472492,1780152905000,-300.0,5.752e-05,2]
[423472490,1780152905000,-155.5070567,5.752e-05,2]
[423472488,1780152905000,-184.69660956,5.646e-05,7]
[423472489,1780152905000,-300.0,5.751e-05,2]
[423472498,1780152923000,-5.70650506,5.752e-05,2]
[423472496,1780152923000,-300.0,5.752e-05,2]
[423472497,1780152923000,-300.0,5.752e-05,2]
[423472495,1780152923000,-300.0,5.752e-05,2]
[423472494,1780152923000,-94.29349494,5.752e-05,2]
[423472499,1780152999000,-594.29349494,5.752e-05,2]
[423472501,1780153102000,-184.69660957,5.855e-05,7]
[423472502,1780153102000,-526.16357754,5.885e-05,2]
[423472500,1780153102000,-168.577878,5.673e-05,2]
[423472503,1780153155000,-152.0,5.653e-05,2]
[423472505,1780153380000,-253.0,5.917e-05,2]
[423472506,1780153380000,-4323.4647965,5.918e-05,2]
[423472504,1780153380000,-423.5352035,5.676e-05,2]
[423472507,1780153387000,-5000.0,5.918e-05,2]
[423472508,1780153388000,-5000.0,5.918e-05,2]
[423472509,1780153389000,-5000.0,5.918e-05,2]
[423472510,1780153390000,-5000.0,5.918e-05,2]
[423472511,1780153391000,-705.52936189,5.918e-05,2]
[423472512,1780153392000,4294.47063811,5.918e-05,2]
[423472514,1780153419000,-500.0,5.917e-05,2]
[423472516,1780153419000,-3708.38923614,5.918e-05,2]
[423472515,1780153419000,-291.61076386,5.917e-05,2]
[423472513,1780153419000,-500.0,5.917e-05,2]
[423472517,1780153420000,-5000.0,5.918e-05,2]
[423472518,1780153421000,-5000.0,5.918e-05,2]
[423472519,1780153422000,-5000.0,5.918e-05,2]
[423472520,1780153423000,-5000.0,5.918e-05,2]
[423472521,1780153424000,-5000.0,5.918e-05,2]
[423472522,1780153425000,-5000.0,5.918e-05,2]
[423472523,1780153437000,-5000.0,5.918e-05,2]
[423472524,1780153438000,-5000.0,5.918e-05,2]
[423472526,1780153439000,-5000.0,5.918e-05,2]
[423472525,1780153439000,-5000.0,5.918e-05,2]
[423472530,1780153460000,-3709.74588637,5.918e-05,2]
[423472529,1780153460000,-500.0,5.917e-05,2]
[423472528,1780153460000,-290.25411363,5.917e-05,2]
[423472527,1780153460000,-500.0,5.917e-05,2]
[423472531,1780153491000,-374.2685,5.918e-05,2]
[423472532,1780153532000,-5000.0,5.918e-05,2]
[423472533,1780153533000,-5000.0,5.918e-05,2]
[423472536,1780153534000,-5000.0,5.918e-05,2]
[423472535,1780153534000,-5000.0,5.918e-05,2]
[423472534,1780153534000,-5000.0,5.918e-05,2]
[423472537,1780153535000,-5000.0,5.918e-05,2]
[423472538,1780153545000,-5000.0,5.918e-05,2]
[423472539,1780153546000,-5000.0,5.918e-05,2]
[423472540,1780153546000,-5000.0,5.918e-05,2]
[423472542,1780153547000,-5000.0,5.918e-05,2]
[423472541,1780153547000,-5000.0,5.918e-05,2]
[423472545,1780153548000,-5000.0,5.918e-05,2]
[423472544,1780153548000,-5000.0,5.918e-05,2]
[423472543,1780153548000,-5000.0,5.918e-05,2]
[423472548,1780153549000,-5000.0,5.918e-05,2]
[423472547,1780153549000,-5000.0,5.918e-05,2]
[423472546,1780153549000,-5000.0,5.918e-05,2]
[423472549,1780153550000,-5000.0,5.918e-05,2]
[423472551,1780153550000,-5000.0,5.918e-05,2]
[423472550,1780153550000,-5000.0,5.918e-05,2]
[423472554,1780153551000,-5000.0,5.918e-05,2]
[423472553,1780153551000,-5000.0,5.918e-05,2]
[423472552,1780153551000,-5000.0,5.918e-05,2]
[423472557,1780153552000,-5000.0,5.918e-05,2]
[423472556,1780153552000,-5000.0,5.918e-05,2]
[423472555,1780153552000,-5000.0,5.918e-05,2]
[423472560,1780153553000,-5000.0,5.918e-05,2]
[423472559,1780153553000,-5000.0,5.918e-05,2]
[423472558,1780153553000,-5000.0,5.918e-05,2]
[423472561,1780153554000,-5000.0,5.918e-05,2]
[423472563,1780153554000,-5000.0,5.918e-05,2]
[423472562,1780153554000,-5000.0,5.918e-05,2]
[423472565,1780153555000,-5000.0,5.918e-05,2]
[423472564,1780153555000,-5000.0,5.918e-05,2]
[423472566,1780153634000,-1775.0,5.918e-05,2]
[423472687,1780153838000,-33362.5839164,5.918e-05,2]
[423472689,1780153838000,-76962.2936908,5.918e-05,2]
[423472690,1780153838000,-954701.54801935,5.918e-05,2]
[423472692,1780153838000,-23149.9999996,5.918e-05,2]
[423472688,1780153838000,-74749.23292023,5.918e-05,2]
[423472696,1780153838000,-1385.59573854,5.918e-05,2]
[423472693,1780153838000,-26325.74633875,5.918e-05,2]
[423472694,1780153838000,-1689.72065281,5.918e-05,2]
[423472695,1780153838000,-1176.01195731,5.918e-05,2]
[423472691,1780153838000,-136382.14123327,5.918e-05,2]
[423472720,1780153841000,-5339.53196822,5.918e-05,2]
[423472718,1780153841000,-1604.14,5.918e-05,2]
[423472719,1780153841000,-2936.42643806,5.918e-05,2]
[423472733,1780153843000,-300.0,6.137e-05,2]
[423472742,1780153843000,-300.0,6.137e-05,2]
[423472736,1780153843000,-300.0,6.137e-05,2]
[423472735,1780153843000,-300.0,6.137e-05,2]
[423472734,1780153843000,-300.0,6.137e-05,2]
[423472732,1780153843000,-300.0,6.137e-05,2]
[423472743,1780153843000,-300.0,6.137e-05,2]
[423472731,1780153843000,-300.0,6.137e-05,2]
[423472738,1780153843000,-300.0,6.137e-05,2]
[423472729,1780153843000,-515.64030598,5.931e-05,2]
[423472728,1780153843000,-123437.16903939,5.918e-05,2]
[423472739,1780153843000,-300.0,6.137e-05,2]
[423472737,1780153843000,-300.0,6.137e-05,2]
[423472730,1780153843000,-168.577878,5.971e-05,2]
[423472741,1780153843000,-300.0,6.137e-05,2]
[423472740,1780153843000,-300.0,6.137e-05,2]
[423472754,1780153843000,-1414.0,6.604e-05,2]
[423472748,1780153843000,-743.0,6.492e-05,2]
[423472750,1780153843000,-443.0,6.492e-05,2]
[423472751,1780153843000,-168.577878,6.569e-05,2]
[423472749,1780153843000,-185.0,6.492e-05,2]
[423472752,1780153843000,-150.0,6.604e-05,2]
[423472746,1780153843000,-2799.9992345,6.304e-05,2]
[423472747,1780153843000,-720.0,6.327e-05,2]
[423472744,1780153843000,-300.0,6.137e-05,2]
[423472745,1780153843000,-168.577878,6.27e-05,2]
[423472755,1780153843000,-2205.0,6.604e-05,2]
[423472753,1780153843000,-150.0,6.604e-05,2]
[423472797,1780153844000,-500.0,8.218e-05,2]
[423472799,1780153844000,-500.0,8.218e-05,2]
[423472807,1780153844000,-500.0,8.218e-05,2]
[423472795,1780153844000,-500.0,8.218e-05,2]
[423472796,1780153844000,-500.0,8.218e-05,2]
[423472791,1780153844000,-800.0,8.066e-05,2]
[423472792,1780153844000,-800.0,8.101e-05,2]
[423472787,1780153844000,-5000.0,8e-05,2]
[423472790,1780153844000,-800.0,8.029e-05,2]
[423472798,1780153844000,-500.0,8.218e-05,2]
[423472815,1780153844000,-500.0,8.219e-05,2]
[423472806,1780153844000,-500.0,8.218e-05,2]
[423472784,1780153844000,-200.90035591,8e-05,2]
[423472802,1780153844000,-500.0,8.218e-05,2]
[423472803,1780153844000,-500.0,8.218e-05,2]
[423472800,1780153844000,-500.0,8.218e-05,2]
[423472805,1780153844000,-500.0,8.218e-05,2]
[423472804,1780153844000,-500.0,8.218e-05,2]
[423472811,1780153844000,-500.0,8.219e-05,2]
[423472810,1780153844000,-189.8702946,8.219e-05,2]
[423472808,1780153844000,-364.46014754,8.218e-05,2]
[423472809,1780153844000,-500.0,8.219e-05,2]
[423472812,1780153844000,-500.0,8.219e-05,2]
[423472819,1780153844000,-164.12334471,8.219e-05,2]
[423472813,1780153844000,-500.0,8.219e-05,2]
[423472817,1780153844000,-500.0,8.219e-05,2]
[423472786,1780153844000,-5000.0,8e-05,2]
[423472801,1780153844000,-500.0,8.218e-05,2]
[423472788,1780153844000,-5000.0,8e-05,2]
[423472767,1780153844000,-1000.0,7.656e-05,2]
[423472793,1780153844000,-800.0,8.113e-05,2]
[423472757,1780153844000,-500.0,6.959e-05,2]
[423472756,1780153844000,-168.577878,6.867e-05,2]
[423472764,1780153844000,-152.0,7.122e-05,30]
[423472763,1780153844000,-152.0,7.122e-05,30]
[423472759,1780153844000,-152.0,6.997e-05,7]
[423472766,1780153844000,-505.26279879,7.507e-05,2]
[423472769,1780153844000,-800.0,7.888e-05,2]
[423472768,1780153844000,-800.0,7.882e-05,2]
[423472765,1780153844000,-500.0,7.392e-05,2]
[423472770,1780153844000,-800.0,7.93e-05,2]
[423472762,1780153844000,-152.0,7.103e-05,30]
[423472758,1780153844000,-864.0,6.96e-05,2]
[423472760,1780153844000,-152.0,6.997e-05,7]
[423472785,1780153844000,-442.87858153,8e-05,2]
[423472761,1780153844000,-152.0,7.088e-05,30]
[423472772,1780153844000,-800.0,7.953e-05,2]
[423472773,1780153844000,-800.0,7.968e-05,2]
[423472774,1780153844000,-800.0,7.978e-05,2]
[423472775,1780153844000,-962.433,7.978e-05,2]
[423472776,1780153844000,-800.0,7.981e-05,2]
[423472778,1780153844000,-800.0,7.997e-05,2]
[423472777,1780153844000,-810.05183407,7.991e-05,2]
[423472779,1780153844000,-194.27,8e-05,2]
[423472781,1780153844000,-194.27,8e-05,2]
[423472780,1780153844000,-194.29,8e-05,2]
[423472783,1780153844000,-1072.0,8e-05,2]
[423472782,1780153844000,-194.27,8e-05,2]
[423472794,1780153844000,-423.5352035,8.136e-05,2]
[423472771,1780153844000,-608.45556106,7.931e-05,2]
[423472814,1780153844000,-500.0,8.219e-05,2]
[423472789,1780153844000,-800.0,8.016e-05,2]
[423472818,1780153844000,-151.5,8.219e-05,2]
[423472853,1780153844000,-500.0,8.219e-05,2]
[423472856,1780153844000,-500.0,8.219e-05,2]
[423472852,1780153844000,-623.53674622,8.219e-05,2]
[423472855,1780153844000,-500.0,8.219e-05,2]
[423472851,1780153844000,-500.0,8.219e-05,2]
[423472854,1780153844000,-500.0,8.219e-05,2]
[423472870,1780153844000,-500.0,8.219e-05,2]
[423472860,1780153844000,-505.00000006,8.219e-05,2]
[423472859,1780153844000,-502.20032893,8.219e-05,2]
[423472862,1780153844000,-500.0,8.219e-05,2]
[423472863,1780153844000,-500.0,8.219e-05,2]
[423472867,1780153844000,-525.91736994,8.219e-05,2]
[423472865,1780153844000,-501.02317987,8.219e-05,2]
[423472857,1780153844000,-500.0,8.219e-05,2]
[423472869,1780153844000,-253.6539694,8.219e-05,2]
[423472864,1780153844000,-500.0,8.219e-05,2]
[423472868,1780153844000,-500.0,8.219e-05,2]
[423472866,1780153844000,-500.0,8.219e-05,2]
[423472872,1780153844000,-500.0,8.219e-05,2]
[423472874,1780153844000,-500.0,8.219e-05,2]
[423472878,1780153844000,-500.0,8.219e-05,2]
[423472877,1780153844000,-500.0,8.219e-05,2]
[423472875,1780153844000,-500.0,8.219e-05,2]
[423472879,1780153844000,-500.0,8.219e-05,2]
[423472876,1780153844000,-614.25014527,8.219e-05,2]
[423472871,1780153844000,-500.0,8.219e-05,2]
[423472873,1780153844000,-500.0,8.219e-05,2]
[423472880,1780153844000,-500.0,8.219e-05,2]
[423472861,1780153844000,-500.0,8.219e-05,2]
[423472858,1780153844000,-500.0,8.219e-05,2]
[423472820,1780153844000,-352.07707965,8.219e-05,2]
[423472850,1780153844000,-1243.18,8.219e-05,2]
[423472816,1780153844000,-500.0,8.219e-05,2]
[423472821,1780153844000,-560.52730279,8.219e-05,2]
[423472822,1780153844000,-500.0,8.219e-05,2]
[423472823,1780153844000,-501.88424725,8.219e-05,2]
[423472832,1780153844000,-508.93,8.219e-05,2]
[423472824,1780153844000,-500.0,8.219e-05,2]
[423472825,1780153844000,-500.0,8.219e-05,2]
[423472828,1780153844000,-577.91,8.219e-05,2]
[423472849,1780153844000,-500.0,8.219e-05,2]
[423472827,1780153844000,-500.0,8.219e-05,2]
[423472829,1780153844000,-500.0,8.219e-05,2]
[423472830,1780153844000,-500.0,8.219e-05,2]
[423472831,1780153844000,-292.2066766,8.219e-05,2]
[423472841,1780153844000,-500.0,8.219e-05,2]
[423472826,1780153844000,-1384.1674,8.219e-05,2]
[423472834,1780153844000,-500.0,8.219e-05,2]
[423472840,1780153844000,-500.0,8.219e-05,2]
[423472848,1780153844000,-500.0,8.219e-05,2]
[423472839,1780153844000,-500.0,8.219e-05,2]
[423472844,1780153844000,-567.72,8.219e-05,2]
[423472842,1780153844000,-625.86908226,8.219e-05,2]
[423472846,1780153844000,-500.38990564,8.219e-05,2]
[423472847,1780153844000,-500.0,8.219e-05,2]
[423472836,1780153844000,-500.0,8.219e-05,2]
[423472833,1780153844000,-490.0,8.219e-05,2]
[423472843,1780153844000,-500.0,8.219e-05,2]
[423472835,1780153844000,-500.0,8.219e-05,2]
[423472837,1780153844000,-479.0,8.219e-05,2]
[423472838,1780153844000,-500.0,8.219e-05,2]
[423472845,1780153844000,-943.36,8.219e-05,2]
[423472934,1780153845000,-500.0,8.219e-05,2]
[423472925,1780153845000,-500.0,8.219e-05,2]
[423472924,1780153845000,-341.32993513,8.219e-05,2]
[423472914,1780153845000,-433.56995145,8.219e-05,2]
[423472916,1780153845000,-500.0,8.219e-05,2]
[423472918,1780153845000,-500.0,8.219e-05,2]
[423472917,1780153845000,-500.0,8.219e-05,2]
[423472913,1780153845000,-66.43004855,8.219e-05,2]
[423472915,1780153845000,-500.0,8.219e-05,2]
[423472912,1780153845000,-500.0,8.219e-05,2]
[423472911,1780153845000,-500.0,8.219e-05,2]
[423472919,1780153845000,-500.0,8.219e-05,2]
[423472929,1780153845000,-993.09,8.219e-05,2]
[423472946,1780153845000,-500.0,8.219e-05,2]
[423472926,1780153845000,-500.0,8.219e-05,2]
[423472928,1780153845000,-500.0,8.219e-05,2]
[423472933,1780153845000,-500.0,8.219e-05,2]
[423472927,1780153845000,-500.0,8.219e-05,2]
[423472930,1780153845000,-500.0,8.219e-05,2]
[423472932,1780153845000,-500.0,8.219e-05,2]
[423472935,1780153845000,-630.93610363,8.219e-05,2]
[423472931,1780153845000,-500.0,8.219e-05,2]
[423472936,1780153845000,-500.0,8.219e-05,2]
[423472939,1780153845000,-1882.04,8.219e-05,2]
[423472938,1780153845000,-1213.18,8.219e-05,2]
[423472945,1780153845000,-500.37325397,8.219e-05,2]
[423472937,1780153845000,-500.0,8.219e-05,2]